bitfinex/quotes_ETHUSD_20250319
["timestamp","ask_amount","ask_price","bid_price","bid_amount"]
[1742394703170,8.573,2027.0,2026.6,4.93425]
[1742394703339,8.573,2027.0,2026.7,4.93407]
[1742394703547,5.76685,2026.6,2025.9,0.8279]
[1742394703870,5.573,2026.5,2026.3,4.93491]
[1742394704234,8.573,2026.5,2026.4,4.93485]
[1742394704439,8.573,2026.5,2025.9,0.8279]
[1742394704771,4.935,2026.4,2026.0,4.93579]
[1742394705087,3.0,2026.4,2025.9,5.76395]
[1742394705263,10.541222,2026.4,2025.9,4.93605]
[1742394705564,10.541222,2026.4,2025.9,4.93592]
[1742394705784,4.93561,2026.1,2025.5,4.93683]
[1742394705935,5.71999,2025.9,2025.4,4.93715]
[1742394706334,5.71999,2025.9,2025.3,4.93744]
[1742394706335,4.93652,2025.8,2025.3,4.93744]
[1742394706572,4.93652,2025.8,2025.3,4.93734]
[1742394706804,3.7839,2025.9,2025.4,4.93724]
[1742394706952,7.93635,2025.8,2025.3,4.93743]
[1742394707264,0.7941,2026.2,2025.5,0.7746]
[1742394707580,5.573,2026.2,2025.7,4.93649]
[1742394707785,8.573,2026.2,2026.1,4.93559]
[1742394708673,8.573,2026.2,2025.9,4.93601]
[1742394708966,8.573,2026.2,2025.9,4.93597]
[1742394709171,8.573,2026.2,2026.1,4.93559]
[1742394709368,3.0,2026.6,2026.3,4.93499]
[1742394709569,3.0,2026.6,2026.3,4.935]
[1742394709871,3.0,2026.6,2026.4,4.93471]
[1742394710047,5.574,2026.7,2026.4,4.93471]
[1742394710454,5.574,2026.7,2026.5,4.93457]
[1742394711144,5.574,2026.7,2026.4,4.93471]
[1742394711342,5.574,2026.7,2026.5,4.93448]
[1742394711670,4.93513,2026.3,2025.9,4.93594]
[1742394711882,5.574,2026.2,2025.7,4.9364]
[1742394712058,3.0,2026.1,2025.7,4.9364]
[1742394712254,3.0,2025.9,2025.5,4.93699]
[1742394712487,6.3391,2025.8,2025.1,0.803]
[1742394712795,6.3391,2025.8,2025.4,4.93723]
[1742394712962,6.3391,2025.8,2025.4,4.93724]
[1742394713765,6.3391,2025.8,2025.4,4.93719]
[1742394713989,11.27542,2025.8,2025.4,4.93719]
[1742394714159,11.27542,2025.8,2025.3,4.9374]
[1742394714160,3.0,2025.7,2025.3,4.9374]
[1742394714355,4.93686,2025.6,2025.2,4.93772]
[1742394714560,7.93716,2025.5,2025.0,4.93811]
[1742394714792,10.51238,2025.4,2024.9,9.8769]
[1742394715099,8.76213,2025.3,2024.8,4.93874]
[1742394715259,4.93792,2025.2,2024.8,4.93874]
[1742394715463,8.76208,2025.3,2024.9,4.93843]
[1742394715791,4.93781,2025.2,2024.8,4.93874]
[1742394715989,4.93782,2025.2,2024.6,0.7857]
[1742394716191,3.8245,2025.3,2024.9,4.9384]
[1742394716396,3.8245,2025.3,2024.8,4.93855]
[1742394716693,8.76207,2025.3,2024.9,4.93837]
[1742394717205,10.689513,2025.3,2024.9,4.93833]
[1742394717372,3.8245,2025.3,2024.6,0.7857]
[1742394717692,9.87634,2025.1,2024.6,4.93914]
[1742394717894,5.575,2025.0,2024.7,4.93896]
[1742394718139,5.575,2025.0,2024.9,4.93851]
[1742394718276,6.3995,2025.3,2025.2,4.93778]
[1742394718473,8.575,2025.6,2025.3,4.93745]
[1742394718799,15.5508886,2025.6,2025.2,4.93766]
[1742394718966,10.6138486,2025.6,2025.2,4.93763]
[1742394719168,15.5506586,2025.6,2025.2,4.93763]
[1742394719385,15.5506586,2025.6,2025.2,4.93762]
[1742394719590,10.6138486,2025.6,2025.3,4.93743]
[1742394719796,8.575,2025.6,2025.4,4.93718]
[1742394720115,8.575,2025.6,2025.1,4.938]
[1742394720116,5.575,2025.7,2025.6,4.9368]
[1742394720603,4.74258284,2026.4,2025.6,4.9368]
[1742394720604,5.576,2026.3,2025.9,4.9359]
[1742394720896,5.576,2026.3,2026.0,4.93565]
[1742394721071,5.576,2026.3,2026.1,4.93551]
[1742394721272,5.576,2026.3,2026.2,4.93534]
[1742394722110,5.576,2026.3,2026.0,4.93581]
[1742394722111,3.0,2026.5,2026.4,4.93484]
[1742394722310,3.0,2026.5,2026.4,4.93485]
[1742394722607,5.575,2026.8,2026.6,4.93432]
[1742394722832,3.0,2026.7,2026.4,4.93473]
[1742394722976,4.93447,2026.6,2026.2,4.93519]
[1742394723178,10.50889,2026.8,2025.9,5.72577]
[1742394723411,5.575,2026.8,2026.0,0.04865935]
[1742394723719,3.0,2026.7,2026.4,4.93482]
[1742394723876,3.0,2026.7,2026.4,4.93476]
[1742394724076,5.575,2026.8,2026.3,4.93508]
[1742394724310,0.5575,2026.7,2026.4,4.93482]
[1742394724481,8.49163,2026.7,2026.3,4.93508]
[1742394724806,7.93439,2026.6,2026.1,4.93538]
[1742394724995,4.9349,2026.4,2026.0,4.93581]
[1742394725310,4.9349,2026.4,2025.7,4.93636]
[1742394725311,3.0,2026.1,2025.7,4.93635]
[1742394725605,7.9351,2026.3,2025.9,4.93606]
[1742394725790,9.84146828,2026.3,2025.9,9.87197]
[1742394725985,3.0,2026.3,2026.0,4.93583]
[1742394726191,3.0,2026.3,2025.5,0.761]
[1742394726192,9.386,2026.5,2025.5,0.761]
[1742394726393,11.3207,2026.5,2026.1,4.93549]
[1742394726601,3.0,2026.4,2026.1,4.93546]
[1742394726776,7.93498,2026.4,2026.0,4.93573]
[1742394726976,4.93556,2026.2,2025.8,4.93621]
[1742394727190,4.93571,2026.1,2025.7,4.93643]
[1742394727418,4.93556,2026.2,2025.8,4.93621]
[1742394727419,4.93544,2026.2,2025.8,4.93621]
[1742394727610,7.93573,2026.1,2025.7,4.93644]
[1742394727797,13.51073,2026.1,2025.7,4.93644]
[1742394727996,13.51073,2026.1,2025.6,4.93679]
[1742394728201,4.9359,2026.0,2025.6,4.9367]
[1742394728401,2.1687,2025.6,2025.0,0.7823]
[1742394728702,4.93757,2025.3,2024.9,4.93834]
[1742394729006,3.0,2025.4,2025.2,4.93777]
[1742394729212,3.0,2025.4,2025.3,4.93754]
[1742394729398,3.0,2025.4,2025.2,4.93768]
[1742394729603,3.0,2025.4,2025.3,4.93754]
[1742394730710,7.93738,2025.4,2024.7,11.29159]
[1742394730912,0.8309,2025.3,2024.7,0.7786]
[1742394731218,0.8309,2025.3,2025.0,4.93817]
[1742394731398,0.8309,2025.3,2025.0,4.93826]
[1742394731579,0.8309,2025.3,2025.2,4.93778]
[1742394731913,6.286753,2026.1,2025.7,4.93634]
[1742394731914,6.286813,2026.1,2025.7,4.93634]
[1742394732237,3.0,2025.9,2025.7,4.93653]
[1742394732408,3.0,2025.9,2025.6,0.802]
[1742394732711,3.0,2025.9,2025.6,4.93662]
[1742394733213,3.0,2025.9,2025.3,5.73748]
[1742394733214,3.0,2025.9,2025.5,4.93704]
[1742394733383,9.87386,2025.6,2025.1,4.93785]
[1742394733717,10.51191,2025.6,2025.2,4.93776]
[1742394733902,5.575,2025.6,2025.4,4.93729]
[1742394734218,5.575,2025.9,2025.8,4.93632]
[1742394734417,6.3516,2026.2,2025.8,4.93632]
[1742394734709,6.3516,2026.2,2025.9,4.93595]
[1742394734710,3.0,2026.1,2025.9,4.93595]
[1742394734909,5.575,2026.2,2026.0,4.93583]
[1742394735085,2.788205,2026.0,2025.6,4.93666]
[1742394735280,11.7046578,2026.2,2025.3,0.7682]
[1742394735485,3.0,2026.1,2025.7,4.93642]
[1742394735735,7.93568,2026.1,2025.7,4.93642]
[1742394736012,4.93611,2025.9,2025.6,4.93678]
[1742394736229,3.0,2025.9,2025.6,4.93676]
[1742394736583,3.0,2025.8,2025.5,4.93697]
[1742394737008,9.11295346,2025.9,2025.5,4.93697]
[1742394737237,3.0,2025.9,2025.6,4.93659]
[1742394738011,0.8192,2026.0,2025.7,4.93655]
[1742394738341,3.0,2025.9,2025.6,4.93667]
[1742394738821,7.93612,2025.9,2025.3,0.7682]
[1742394739016,8.811652,2025.9,2025.5,4.93695]
[1742394739216,4.93644,2025.8,2025.4,4.93707]
[1742394739415,12.87295,2025.8,2025.4,4.93707]
[1742394739630,3.0,2025.8,2025.4,4.93718]
[1742394739930,10.51135,2025.8,2025.5,4.93685]
[1742394740131,11.944515,2025.8,2025.4,4.93721]
[1742394740313,11.944415,2025.8,2025.4,9.87438]
[1742394740654,4.9369,2025.6,2025.2,4.93773]
[1742394740841,3.0,2025.3,2024.9,4.93849]
[1742394741043,4.93729,2025.4,2025.0,4.93818]
[1742394741044,7.93739,2025.4,2025.0,4.93818]
[1742394741245,8.575,2025.4,2025.1,9.87588]
[1742394741439,8.575,2025.4,2025.0,4.93819]
[1742394741440,13.51232,2025.4,2025.0,4.93819]
[1742394741647,10.497079,2025.4,2025.0,4.93819]
[1742394741822,13.51239,2025.4,2025.0,4.93819]
[1742394742021,8.575,2025.4,2025.1,4.93798]
[1742394742221,8.575,2025.4,2025.1,4.93786]
[1742394742427,3.0,2025.6,2025.5,4.93705]
[1742394742615,3.0,2025.6,2025.4,4.93721]
[1742394743031,3.0,2025.6,2025.4,4.93711]
[1742394743232,0.7908,2025.8,2025.3,4.93754]
[1742394743420,5.574,2025.9,2025.7,4.93656]
[1742394743629,3.0,2025.8,2025.7,4.93656]
[1742394743831,9.3395,2026.2,2025.8,4.93607]
[1742394744153,5.574,2026.2,2026.1,4.93545]
[1742394744445,5.574,2026.2,2025.9,9.87198]
[1742394744649,5.68774,2026.5,2026.1,4.93559]
[1742394744833,0.36225448,2026.8,2026.2,4.93534]
[1742394745032,6.3968,2027.3,2026.5,0.8198]
[1742394745233,4.93315,2027.1,2026.7,4.93397]
[1742394745431,4.93376,2026.9,2026.5,4.9344]
[1742394745730,5.57275,2027.2,2026.7,4.93397]
[1742394745932,7.93355,2027.0,2026.6,4.93436]
[1742394746422,4.93436,2026.6,2026.4,4.93462]
[1742394746627,10.50767,2026.9,2026.5,4.93447]
[1742394746825,11.558437,2026.9,2026.5,4.93447]
[1742394747011,3.0,2026.8,2026.5,4.93447]
[1742394747216,3.0,2026.8,2026.6,4.93425]
[1742394747647,3.0,2026.8,2026.6,4.93421]
[1742394747842,7.93389,2026.8,2026.4,4.9348]
[1742394748170,5.702733,2026.4,2026.1,4.93549]
[1742394748315,8.574,2026.4,2026.1,4.93549]
[1742394748648,8.574,2026.4,2026.2,4.93512]
[1742394748847,8.574,2026.4,2026.1,4.93554]
[1742394749022,8.574,2026.4,2025.8,5.74202]
[1742394749223,8.574,2026.4,2026.1,4.9355]
[1742394749430,8.574,2026.4,2026.0,4.93581]
[1742394749632,8.574,2026.4,2025.9,4.93606]
[1742394749633,9.924864,2026.4,2025.9,4.93588]
[1742394749827,5.574,2026.4,2026.2,4.93515]
[1742394750022,5.574,2026.4,2026.1,4.93556]
[1742394750217,10.50888,2026.4,2026.0,4.93582]
[1742394750424,7.9352,2026.3,2026.0,4.93582]
[1742394750634,3.0,2026.3,2026.0,4.93582]
[1742394750841,3.0,2026.3,2026.0,4.9357]
[1742394751155,3.0,2026.3,2026.0,4.93573]
[1742394751453,3.0,2026.3,2026.0,9.87139]
[1742394751654,3.0,2026.3,2026.1,4.93535]
[1742394751827,5.574,2026.4,2026.3,4.9351]
[1742394752250,5.574,2026.4,2026.0,4.93561]
[1742394752422,10.50886,2026.4,2026.1,4.93555]
[1742394752623,5.574,2026.4,2026.1,4.93555]
[1742394752819,9.388,2026.7,2025.8,5.74205]
[1742394753121,7.93461,2026.5,2026.1,4.93543]
[1742394753452,9.86999,2026.4,2026.0,4.93575]
[1742394753752,3.0,2026.5,2025.8,0.8058]
[1742394753922,3.0,2026.6,2026.3,4.93506]
[1742394754123,17.066,2027.0,2026.6,4.93437]
[1742394754317,0.8177,2027.0,2026.2,0.7503]
[1742394754524,0.8177,2027.0,2026.3,4.93508]
[1742394754723,0.8177,2027.0,2026.6,4.93415]
[1742394754924,6.3464,2027.5,2026.8,4.93388]
[1742394755155,6.3464,2027.5,2026.7,0.8052]
[1742394755323,0.7734,2027.5,2027.2,4.93279]
[1742394755638,3.0,2027.6,2027.3,4.93251]
[1742394755820,7.93209,2027.6,2027.2,4.93273]
[1742394756025,7.93243,2027.4,2027.0,4.93338]
[1742394756232,4.93224,2027.5,2027.1,4.93313]
[1742394756535,3.0,2027.4,2027.0,4.93329]
[1742394756734,7.93176,2027.7,2027.0,4.93335]
[1742394756966,4.93277,2027.3,2026.8,4.93365]
[1742394757168,10.50443,2027.4,2027.0,4.93321]
[1742394757467,7.9317,2027.7,2027.3,4.93255]
[1742394757669,3.0,2027.5,2027.3,9.86502]
[1742394757962,5.572,2027.6,2027.0,4.93337]
[1742394757963,5.572,2027.7,2027.4,4.93242]
[1742394758188,4.93205,2027.6,2027.2,4.93272]
[1742394758364,1.131845,2027.6,2027.1,4.93314]
[1742394758560,3.0,2027.5,2027.2,4.93279]
[1742394758925,4.93257,2027.4,2026.7,0.8052]
[1742394759272,4.93251,2027.4,2027.1,4.93313]
[1742394759491,7.93271,2027.3,2026.9,4.93352]
[1742394759651,7.93271,2027.3,2026.9,9.86697]
[1742394759977,5.572,2027.7,2026.7,0.8052]
[1742394760272,12.86412,2027.6,2027.2,4.93277]
[1742394760486,7.93196,2027.6,2027.2,9.86549]
[1742394760678,3.0,2027.6,2027.2,4.93273]
[1742394760843,7.93194,2027.6,2027.3,4.93257]
[1742394761044,3.0,2027.6,2027.3,4.93257]
[1742394761278,10.50271,2027.7,2027.3,4.93257]
[1742394761456,6.702711,2027.7,2027.0,4.9332]
[1742394761663,4.93303,2027.2,2026.8,4.93388]
[1742394761970,4.93303,2027.2,2026.8,4.9337]
[1742394762152,6.3998,2027.3,2026.7,0.8052]
[1742394762351,6.3998,2027.3,2027.0,4.93331]
[1742394762561,3.0,2027.6,2027.3,4.9326]
[1742394762753,7.93212,2027.6,2027.1,4.93296]
[1742394763067,7.93212,2027.6,2027.2,4.93279]
[1742394763271,6.3219,2027.7,2027.3,0.04859792]
[1742394763583,3.7509,2027.7,2027.4,4.93232]
[1742394764180,3.7509,2027.7,2027.3,4.93248]
[1742394764477,8.76011,2028.0,2027.6,4.93184]
[1742394764682,3.0,2027.8,2027.7,4.93169]
[1742394764981,3.0,2027.8,2027.6,4.9318]
[1742394765169,4.93058,2028.2,2027.8,4.93145]
[1742394765369,5.57,2028.1,2027.8,4.93145]
[1742394765549,5.57,2028.2,2028.0,4.93091]
[1742394765747,0.7987,2028.3,2028.1,4.93059]
[1742394765948,8.58,2028.4,2028.1,4.93059]
[1742394766148,0.01,2028.4,2028.3,4.93023]
[1742394766869,0.01,2028.4,2028.3,4.97875544]
[1742394767070,0.01,2028.4,2028.3,5.73243]
[1742394768263,0.01,2028.4,2028.3,5.78092522]
[1742394768555,0.01,2028.4,2028.3,8.73243]
[1742394769082,1e-05,2028.4,2028.3,8.73243]
[1742394772090,1e-05,2028.4,2028.3,5.73243]
[1742394773561,1e-05,2028.4,2028.3,6.74383973]
[1742394773884,1e-05,2028.4,2028.3,6.79234565]
[1742394774494,1e-05,2028.4,2028.3,9.79234565]
[1742394774694,1e-05,2028.4,2028.3,9.74383973]
[1742394776086,1e-05,2028.4,2028.3,15.30983973]
[1742394777397,1e-05,2028.4,2028.3,32.35583973]
[1742394778800,1e-05,2028.4,2028.3,32.35483973]
[1742394779987,1e-05,2028.4,2028.3,29.35483973]
[1742394780184,1e-05,2028.4,2028.3,5.94163973]
[1742394780385,1e-05,2028.4,2028.3,5.99014826]
[1742394780588,1e-05,2028.4,2028.3,6.78724826]
[1742394780767,1e-05,2028.4,2028.3,15.35124826]
[1742394780971,1e-05,2028.4,2028.3,15.30273973]
[1742394781376,1e-05,2028.4,2028.3,20.49673973]
[1742394782795,1e-05,2028.4,2028.3,37.53873973]
[1742394783277,1e-05,2028.4,2028.3,32.34473973]
[1742394783807,1e-05,2028.4,2028.3,37.53873973]
[1742394784104,1e-05,2028.4,2028.3,32.34473973]
[1742394784308,1e-05,2028.4,2028.3,37.53873973]
[1742394785009,1e-05,2028.4,2028.3,38.08873973]
[1742394785383,1e-05,2028.4,2028.3,37.53873973]
[1742394785599,1e-05,2028.4,2028.3,32.34473973]
[1742394786112,1e-05,2028.4,2028.3,38.08873973]
[1742394786307,1e-05,2028.4,2028.3,37.53873973]
[1742394786484,1e-05,2028.4,2028.3,38.08873973]
[1742394787302,0.7888,2029.8,2029.7,4.92683]
[1742394787629,0.1225524,2030.1,2030.0,4.9261]
[1742394787630,0.8727524,2030.1,2030.0,4.9261]
[1742394788106,0.1225524,2030.1,2030.0,4.9745304]
[1742394788513,0.1225524,2030.1,2030.0,4.9261]
[1742394788806,5.0485224,2030.1,2029.7,4.92682]
[1742394789007,5.72117,2030.0,2029.5,4.9272]
[1742394789308,4.9266,2029.8,2029.4,4.9275]
[1742394789511,5.47635,2029.9,2029.5,4.92711]
[1742394789689,0.8127,2029.5,2029.2,4.92795]
[1742394789888,0.8127,2029.5,2029.3,4.92777]
[1742394790094,3.8268,2029.8,2029.3,4.9278]
[1742394790393,0.8268,2029.8,2029.6,4.92699]
[1742394790702,0.8268,2029.8,2029.5,9.85437]
[1742394790908,7.432594,2029.8,2029.3,4.9278]
[1742394791217,3.0,2029.7,2029.4,4.92756]
[1742394791685,2.505934,2029.8,2029.1,5.29261324]
[1742394791894,7.432644,2029.8,2029.4,4.92746]
[1742394792214,1.2359054,2029.7,2029.4,4.92746]
[1742394792593,0.8268,2029.8,2029.4,4.92738]
[1742394792812,0.8268,2029.8,2029.5,4.92717]
[1742394793385,0.8268,2029.8,2029.4,4.92755]
[1742394793583,10.68029,2029.8,2029.0,10.49052]
[1742394793783,4.92689,2029.7,2029.4,4.92756]
[1742394793983,0.8268,2029.8,2029.5,4.92729]
[1742394794217,5.75341,2029.8,2029.5,4.92731]
[1742394794513,0.8268,2029.8,2029.4,4.92754]
[1742394794689,0.8268,2029.8,2029.2,4.92792]
[1742394794690,0.55,2029.7,2029.2,4.92792]
[1742394794891,0.55,2029.7,2029.1,3.0]
[1742394795090,0.8268,2029.8,2029.6,4.92688]
[1742394795889,0.8268,2029.8,2029.5,4.92729]
[1742394796096,5.7535,2029.8,2029.4,4.92747]
[1742394796301,0.8268,2029.8,2029.5,4.92708]
[1742394796505,0.8268,2029.8,2029.5,9.85426]
[1742394796783,0.8268,2029.8,2029.5,4.92708]
[1742394796986,0.8268,2029.8,2029.5,4.9272]
[1742394797192,0.8268,2029.8,2029.6,4.92706]
[1742394797413,0.7692,2030.0,2029.6,4.92696]
[1742394798721,0.7692,2030.0,2029.9,4.92613]
[1742394802223,0.7692,2030.0,2029.7,0.970566]
[1742394802519,0.7692,2030.0,2029.7,9.85356]
[1742394802727,0.55,2029.9,2029.3,6.33]
[1742394802927,10.03122884,2029.9,2029.4,4.92753]
[1742394803138,4.9267,2029.8,2029.5,4.92729]
[1742394803309,4.9267,2029.8,2029.4,4.92751]
[1742394803493,4.9267,2029.8,2029.4,9.85498]
[1742394803922,4.9267,2029.8,2029.4,4.92747]
[1742394804124,0.8257,2029.6,2029.3,4.9278]
[1742394804426,5.75291,2029.6,2029.2,4.92804]
[1742394804634,0.55,2029.5,2029.2,4.92804]
[1742394804820,0.8257,2029.6,2029.5,4.92732]
[1742394805131,3.7594,2030.0,2029.8,4.92638]
[1742394805315,3.7594,2030.0,2029.8,9.85286]
[1742394805632,0.7594,2030.0,2029.7,4.92675]
[1742394805835,0.7594,2030.0,2029.8,4.92658]
[1742394806028,0.7594,2030.0,2029.5,5.29163113]
[1742394806210,0.7594,2030.0,2029.9,4.92635]
[1742394806405,0.7594,2030.0,2029.4,5.559]
[1742394806607,0.7594,2030.0,2029.9,4.92635]
[1742394806935,0.1225524,2030.1,2030.0,4.9261]
[1742394813036,0.1225524,2030.1,2029.9,4.92622]
[1742394813255,0.1225524,2030.1,2030.0,4.9261]
[1742394814304,0.1225524,2030.1,2030.0,4.97452295]
[1742394814519,0.1225524,2030.1,2030.0,4.9261]
[1742394815331,0.1225524,2030.1,2030.0,7.9261]
[1742394817428,2.4e-06,2030.1,2030.0,7.9261]
[1742394821654,2.4e-06,2030.1,2030.0,8.93058146]
[1742394823293,2.4e-06,2030.1,2030.0,5.93058146]
[1742394823426,4.55478124,2030.1,2029.8,4.92658]
[1742394823630,4.55478124,2030.1,2029.8,4.92643]
[1742394823843,4.55478124,2030.1,2029.9,4.92631]
[1742394824146,0.55,2030.0,2029.6,4.92684]
[1742394824325,0.55,2030.0,2029.3,17.8259]
[1742394824326,0.8143,2029.9,2029.8,4.92659]
[1742394824531,2.4e-06,2030.1,2030.0,4.9261]
[1742394825233,2.4e-06,2030.1,2029.9,4.92626]
[1742394825436,10.01759936,2030.1,2029.8,4.92651]
[1742394825638,10.01758936,2030.1,2029.8,4.92651]
[1742394825833,0.55,2030.0,2029.8,4.92658]
[1742394826056,2.4e-06,2030.1,2030.0,4.9261]
[1742394826859,4.55478124,2030.1,2029.5,5.554]
[1742394827057,9.48069124,2030.1,2029.7,4.9266]
[1742394827266,4.55478124,2030.1,2029.8,4.92644]
[1742394827449,2.4e-06,2030.1,2030.0,4.9261]
[1742394827631,2.4e-06,2030.1,2029.9,4.92621]
[1742394827831,2.4e-06,2030.1,2029.8,4.92657]
[1742394827832,0.5500024,2030.1,2029.8,4.92657]
[1742394828029,5.47643,2029.9,2029.5,4.92722]
[1742394828271,10.30636884,2029.8,2029.4,9.85475]
[1742394828466,4.92693,2029.7,2029.3,4.92771]
[1742394828666,4.92693,2029.7,2029.4,4.92754]
[1742394828832,0.7797,2029.5,2029.1,4.92817]
[1742394829032,5.10477884,2029.4,2029.0,5.07842]
[1742394829340,10.55591352,2029.4,2029.0,0.15]
[1742394829538,0.7536,2029.1,2029.0,0.15]
[1742394831066,1.3036,2029.1,2029.0,0.15]
[1742394831363,5.85837884,2029.1,2029.0,0.15]
[1742394831527,10.78666884,2029.1,2029.0,0.15]
[1742394831860,12.42063572,2029.1,2029.0,0.15]
[1742394832068,7.49234572,2029.1,2029.0,0.15]
[1742394832251,5.85837884,2029.1,2029.0,0.15]
[1742394832731,1.3036,2029.1,2029.0,0.15]
[1742394833132,0.7536,2029.1,2029.0,0.15]
[1742394834758,0.7536,2029.1,2029.0,5.07853]
[1742394834966,6.103,2029.3,2029.2,4.92805]
[1742394835163,5.553,2029.3,2029.1,9.85635]
[1742394835465,5.554,2029.7,2029.3,4.9278]
[1742394835664,3.0,2029.6,2029.2,4.92794]
[1742394835962,10.88977884,2029.7,2029.3,4.92762]
[1742394836164,10.88977884,2029.7,2029.2,4.92784]
[1742394836376,3.0,2029.6,2029.3,4.92779]
[1742394836665,5.33577884,2029.7,2029.4,4.92744]
[1742394836869,0.661,2029.7,2029.6,4.92707]
[1742394837171,4.92614,2030.0,2029.5,4.92712]
[1742394837351,4.92663,2029.8,2029.4,9.85501]
[1742394837735,5.4767,2029.8,2029.2,4.92805]
[1742394837936,9.48175884,2029.7,2029.3,4.92768]
[1742394838132,0.55,2029.5,2029.0,4.92829]
[1742394838337,5.47741,2029.5,2029.1,4.92825]
[1742394838566,0.55,2029.5,2029.2,4.92804]
[1742394839163,4.92765,2029.4,2029.0,4.92853]
[1742394839365,4.92765,2029.4,2029.0,4.92837]
[1742394839366,7.55477884,2029.4,2029.0,4.92837]
[1742394839553,3.0,2029.4,2029.1,4.92819]
[1742394839740,0.807,2029.4,2029.1,4.92815]
[1742394839939,0.807,2029.4,2029.3,4.9278]
[1742394840155,0.807,2029.4,2029.2,4.92797]
[1742394840367,1.3365,2029.6,2029.3,4.92767]
[1742394840567,6.26361,2029.6,2029.2,4.92786]
[1742394841070,4.55477884,2029.5,2029.1,4.92828]
[1742394841270,9.48211884,2029.5,2029.1,4.92828]
[1742394841478,6.26361,2029.6,2029.1,4.92816]
[1742394841643,0.7865,2029.6,2029.1,5.7509]
[1742394841985,5.71574,2029.9,2029.5,4.9273]
[1742394842180,12.34560496,2029.9,2029.5,4.9273]
[1742394842413,12.34560496,2029.9,2029.4,4.92733]
[1742394842414,7.41916496,2029.9,2029.4,4.92733]
[1742394842585,0.7893,2029.9,2029.7,4.92674]
[1742394842765,0.7893,2029.9,2029.8,4.92659]
[1742394843324,2.4e-06,2030.1,2029.9,4.9261]
[1742394843452,2.4e-06,2030.1,2030.0,4.9261]
[1742394843781,2.4e-06,2030.1,2029.9,4.92634]
[1742394843984,2.4e-06,2030.1,2029.9,4.92619]
[1742394844373,2.4e-06,2030.1,2029.8,4.92657]
[1742394844784,2.4e-06,2030.1,2030.0,5.6847]
[1742394844967,2.4e-06,2030.1,2030.0,8.6847]
[1742394846289,2.4e-06,2030.1,2030.0,7.9261]
[1742394846465,2.4e-06,2030.1,2030.0,4.9261]
[1742394847288,2.4e-06,2030.1,2030.0,4.97451074]
[1742394847467,2.4e-06,2030.1,2030.0,4.9261]
[1742394849902,2.4e-06,2030.1,2030.0,4.97451136]
[1742394850307,2.4e-06,2030.1,2030.0,4.9261]
[1742394852308,2.4e-06,2030.1,2030.0,5.93088255]
[1742394853491,4.55478124,2030.1,2029.8,4.92652]
[1742394853797,4.55478124,2030.1,2029.0,4.92842]
[1742394853798,4.92671,2029.8,2029.4,0.96934519]
[1742394854003,9.48219884,2029.5,2029.1,4.92822]
[1742394854179,0.8059,2029.4,2029.1,4.92812]
[1742394854379,0.8059,2029.4,2029.3,4.9278]
[1742394854807,0.7573,2029.6,2029.4,4.92753]
[1742394855103,0.7573,2029.6,2029.3,4.92772]
[1742394855280,10.23926884,2029.6,2029.2,4.92793]
[1742394855480,15.16656884,2029.6,2029.2,4.92793]
[1742394855700,4.92737,2029.5,2029.1,5.89439116]
[1742394855908,4.55477884,2029.4,2029.1,4.92814]
[1742394856113,9.48245884,2029.4,2029.0,4.92852]
[1742394856310,2.82895688,2029.6,2028.8,4.9288]
[1742394856311,14.41120884,2029.2,2028.8,4.9288]
[1742394856486,14.41121884,2029.2,2028.8,4.9288]
[1742394856681,9.48334884,2029.0,2028.5,4.92971]
[1742394856884,0.7933,2028.8,2028.5,4.92971]
[1742394857192,0.7933,2028.8,2028.6,4.92948]
[1742394858009,0.8164,2029.0,2028.4,0.36235122]
[1742394858178,0.8164,2029.0,2028.9,4.92877]
[1742394858610,3.0,2029.2,2029.0,4.92853]
[1742394858815,4.92838,2029.1,2028.7,4.92921]
[1742394859112,4.55477884,2029.0,2028.7,4.92908]
[1742394859623,4.55477884,2029.0,2027.8,4.93128]
[1742394859624,4.92926,2028.7,2028.0,0.7965]
[1742394859831,5.33907884,2028.3,2028.0,4.93076]
[1742394860126,10.26948884,2028.3,2027.9,4.93106]
[1742394860332,0.7843,2028.3,2027.7,4.93169]
[1742394860481,0.7843,2028.3,2028.0,9.8619]
[1742394860683,3.8146,2028.6,2028.1,4.93072]
[1742394860924,3.8146,2028.6,2028.4,4.92987]
[1742394861137,0.8146,2028.6,2028.5,4.92975]
[1742394861321,5.55,2028.8,2028.5,4.92975]
[1742394861641,4.55477884,2028.7,2028.5,4.92962]
[1742394861842,5.55,2028.8,2028.6,4.9295]
[1742394862146,10.47912,2028.8,2028.4,4.92997]
[1742394862324,0.7923,2028.4,2028.1,4.93063]
[1742394862508,4.55477884,2028.3,2027.6,0.3709072]
[1742394862708,4.55477884,2028.3,2027.6,4.93191]
[1742394862914,6.3423,2028.4,2028.1,4.9306]
[1742394863301,4.55477884,2028.3,2028.0,4.93091]
[1742394863524,4.55477884,2028.3,2027.9,4.93099]
[1742394863729,6.3423,2028.4,2028.1,4.9306]
[1742394863944,3.7521,2028.7,2028.2,4.97893562]
[1742394864276,4.55477884,2028.6,2028.3,4.93019]
[1742394864442,3.7521,2028.7,2028.0,4.93096]
[1742394864443,0.7521,2028.7,2028.0,4.93076]
[1742394864774,0.7521,2028.7,2028.5,4.92958]
[1742394864940,0.7521,2028.7,2028.6,4.9295]
[1742394865268,6.3565,2029.1,2028.6,4.92946]